[Event "85th Tata Steel Masters 2023"]
[White "Aronian,Levon"]
[Black "Praggnanandhaa R"]
[Site "Wijk aan Zee"]
[Round "2.5"]
[Annotator "TA"]
[Result "1/2-1/2"]
[Date "2023.01.15"]
[WhiteElo "2735"]
[BlackElo "2684"]
[PlyCount "63"]
[TimeControl "60"]

{[%evp 19,63,6,7,0,6,-8,-1,-1,-9,0,-10,0,0,-38,-13,-21,-17,-11,-13,-19,0,0,0,0,0,0,0,0,0,0,0,0,2,0,0,0,0,0,0,0,0,0,0,0,0,0]} 1. e4 {[%emt 0:0:4]} e5 {[%emt 0:0:46]} 2. Nf3 {[%emt 0:0:5]} Nc6 {[%emt 0:0:9]} 3. Bb5 {[%emt 0:0:7]} a6 {[%emt 0:0:21]} 4. Ba4 {[%emt 0:0:6]} Nf6 {[%emt 0:0:6]} 5. O-O {[%emt 0:0:5]} Nxe4 {[%emt 0:0:10]} 6. d4 {[%emt 0:0:17]} b5 {[%emt 0:0:19]} 7. Bb3 {[%emt 0:0:6]} d5 {[%emt 0:0:8]} 8. Nxe5 {[%emt 0:0:27]} Nxe5 {[%emt 0:0:36]} 9. dxe5 {[%emt 0:0:4]} c6 {[%emt 0:0:45]} 10. Be3 {[%emt 0:0:6]} Be7 {[%emt 0:1:2]} 11. c3 {[%emt 0:0:24] C80: Open Ruy Lopez: Sidelines and 9 Nbd2.} O-O {[%emt 0:2:12]} 12. Bc2 {[%emt 0:0:7]} f5 {[%emt 0:1:8]} 13. exf6 {[%emt 0:0:39]} Nxf6 {[%emt 0:0:34]} 14. h3 {[%emt 0:0:22] Prevents Ng4.} Be6 {[%emt 0:1:22]} 15. Nd2 {[%emt 0:9:31] [#]} Qd7 $146 {[%emt 0:1:26]} ({Predecessor:} 15... Qc8 16. Nf3 Bd6 17. Ng5 Bf5 18. Qb1 Bxc2 19. Qxc2 h6 20. Nf3 Ne4 21. Nd2 Nxd2 22. Bxd2 Qe6 23. Rae1 Qf6 24. Re2 Rae8 25. Rxe8 Rxe8 26. Re1 Rxe1+ {½-½ Reeh,O (2449)-Holzke,F (2479) Bundesliga 0506 2005 (1.5)} )16. f4 {[%emt 0:3:57]} Bf5 {[%emt 0:5:34]} 17. Bxf5 {[%emt 0:0:43] The position is equal.} Qxf5 {[%emt 0:0:3]} 18. g4 {[%emt 0:0:22]} Qd3 {[%emt 0:18:0]} 19. Rf3 {[%emt 0:2:42]} Ne4 {[%emt 0:2:29]} 20. f5 {[%emt 0:3:50] [#] Hoping for Bf4.} Nxd2 {[%emt 0:8:42]} 21. Qxd2 {[%emt 0:0:54]} Qxd2 {[%emt 0:2:22]} (21... Qe4 {with more complications.} 22. Rff1 Bh4 23. Bf2 Bxf2+ 24. Kxf2 Qe5 )22. Bxd2 {[%emt 0:0:7]} Rfe8 {[%emt 0:4:2]} 23. Kf1 {[%emt 0:3:5]} Bh4 {[%emt 0:7:55]} 24. a4 {[%emt 0:4:3]} h6 {[%emt 0:8:11]} 25. Re3 {[%emt 0:3:56]} Bg5 {[%emt 0:2:27]} 26. Rxe8+ {[%emt 0:3:34]} Rxe8 {[%emt 0:0:2]} 27. Bxg5 {[%emt 0:1:30]} hxg5 {[%emt 0:0:2]} 28. axb5 {[%emt 0:1:3]} axb5 $11 {[%emt 0:0:7] KR-KR} 29. Ra6 {[%emt 0:0:54]} Re3 {[%emt 0:2:23]} 30. Rxc6 {[%emt 0:1:27]} Rxh3 {[%emt 0:0:51]} 31. Rc5 {[%emt 0:1:32]} d4 {[%emt 0:6:45]} 32. Kg2 {[%emt 0:6:41] An interesting draw.   Weighted Error Value: White=0.03 (flawless) /Black=0.03 (flawless)} 1/2-1/2

[Event "85th Tata Steel Masters 2023"]
[White "Giri,Anish"]
[Black "Gukesh D"]
[Site "Wijk aan Zee"]
[Round "2.6"]
[Annotator "TA"]
[Result "1-0"]
[Date "2023.01.15"]
[WhiteElo "2764"]
[BlackElo "2725"]
[PlyCount "53"]
[TimeControl "60"]

{[%evp 18,53,21,12,14,12,14,10,17,0,0,-10,22,10,6,13,61,52,222,222,221,242,242,233,237,238,209,138,150,149,595,599,547,571,571,519,464,520]} 1. d4 {[%emt 0:0:3]} Nf6 {[%emt 0:0:52]} 2. c4 {[%emt 0:0:37]} e6 {[%emt 0:0:42]} 3. Nf3 {[%emt 0:0:9]} d5 {[%emt 0:0:26]} 4. Nc3 {[%emt 0:0:9]} Bb4 {[%emt 0:0:44]} 5. Bg5 {[%emt 0:0:12]} h6 {[%emt 0:1:18]} 6. Bxf6 {[%emt 0:0:11]} Qxf6 {[%emt 0:0:6]} 7. e3 {[%emt 0:0:16]} O-O {[%emt 0:1:26]} 8. Rc1 {[%emt 0:0:35]} dxc4 {[%emt 0:2:1]} 9. Bxc4 {[%emt 0:0:9]} c5 {[%emt 0:0:15]} 10. O-O {[%emt 0:0:12] Strongly threatening Ne4.} cxd4 {[%emt 0:0:12] D38: Queen's Gambit Declined: Ragozin Defence (4 Nf3 Bb4).} 11. Ne4 {[%emt 0:0:14]} Qe7 {[%emt 0:1:19]} 12. a3 {[%emt 0:0:15]} Ba5 {[%emt 0:0:39] The position is equal.} 13. exd4 $5 {[%emt 0:0:13][%mdl 4] A promising side line.} Rd8 {[%emt 0:2:55] [#]} 14. Rc2 $5 $146 {[%emt 0:0:45][%cal Yc1c2,Yc2e2,Ye2e6][%mdl 8] An interesting novelty.} ({Predecessor:} 14. Ba2 Bd7 15. b4 Bb6 16. Re1 Bc6 17. Qc2 Na6 18. h4 Nc7 19. Bb1 Nb5 20. Nc3 {0-1 Mamedyarov,S (2759)-Erigaisi,A (2689) FTX Road to Miami Prelim 2022 (10)} )Bd7 {[%emt 0:26:12]} 15. Re2 {[%emt 0:0:52]} Bc6 {[%emt 0:9:46]} 16. Qc2 {[%emt 0:0:47]} Bb6 {[%emt 0:15:13]} (16... Rc8 $11 17. Ne5 Bd5 )17. Rfe1 {[%emt 0:25:39][%cal Ye4g5] Neg5! would be deadly.} (17. h4 {simplifies} Bxe4 18. Rxe4 Nd7 19. Rfe1 )Kh8 $2 {[%emt 0:11:58] [#]} ({Much worse is} 17... Bxd4 18. Ned2 $17 )({Black should play} 17... Bd5 $14 )18. Neg5 $1 $18 {[%emt 0:14:22][%mdl 512]} hxg5 {[%emt 0:0:6] [#]} 19. Rxe6 $1 {[%emt 0:0:6][%mdl 512]} fxe6 {[%emt 0:0:8]} 20. Rxe6 {[%emt 0:2:48]} Qxe6 {[%emt 0:0:13]} 21. Bxe6 {[%emt 0:0:21]} Bxf3 {[%emt 0:0:6]} (21... Bxd4 {gets mated.} 22. Nxg5 Bxf2+ 23. Kxf2 )22. Qf5 {[%emt 0:27:55] Prevents Bd5. Threatening mate with Qh3+.} Be4 {[%emt 0:1:47]} (22... Bh5 $2 23. Qxg5 $18 )23. Qxe4 {[%emt 0:12:2] White threatens Qg6 and mate.} Rxd4 $2 {[%emt 0:0:8][%mdl 8192] A mistake that costs the game.} (23... Re8 $16 )24. Qf3 {[%emt 0:2:33][%cal Rf3h5] White is clearly winning.} (24. Qxb7 $2 Rd1# )g4 {[%emt 0:0:6]} 25. Qf8+ {[%emt 0:0:53]} ({And not} 25. Bxg4 Nc6 $11 )Kh7 {[%emt 0:0:1][%cal Rd4d1]} 26. Bf5+ {[%emt 0:9:3]} Kh6 {[%emt 0:5:59][%cal Rd4d1]} 27. Bc2 {[%emt 0:0:22] Wards off Rd1+. Beautiful play by Giri!   Weighted Error Value: White=0.13 (very precise) /Black=0.50} 1-0

[Event "85th Tata Steel Masters 2023"]
[White "Van Foreest,Jorden"]
[Black "Rapport,Richard"]
[Site "Wijk aan Zee"]
[Round "2.7"]
[Annotator "TA"]
[Result "1/2-1/2"]
[Date "2023.01.15"]
[WhiteElo "2681"]
[BlackElo "2740"]
[PlyCount "109"]
[TimeControl "60"]

{[%evp 21,109,0,4,12,11,11,11,11,15,-29,-17,-20,-25,-18,-29,-39,-20,-19,-7,-7,-8,-32,-32,-33,-32,-35,0,0,0,0,0,0,0,0,0,-4,-7,-10,-11,-8,-14,-14,-19,-10,-15,-55,-61,-63,-64,-65,-65,-64,-62,-59,-41,-43,-47,-48,-48,-48,-14,-14,0,0,0,0,0,0,0,0,0,0,0,-2,0,0,-1,-19,0,0,0,0,0,0,0,0,0,0,0,0]} 1. e4 {[%emt 0:0:13]} e5 {[%emt 0:1:45]} 2. Nf3 {[%emt 0:0:25]} Nf6 {[%emt 0:0:30]} 3. Nxe5 {[%emt 0:1:16]} d6 {[%emt 0:0:9]} 4. Nf3 {[%emt 0:0:12]} Nxe4 {[%emt 0:0:8]} 5. d4 {[%emt 0:0:22]} d5 {[%emt 0:0:11]} 6. Bd3 {[%emt 0:0:9]} Nc6 {[%emt 0:0:29][%cal Yb8c6,Yc6d4,Yd4c2][%mdl 32]} 7. O-O {[%emt 0:1:9]} Be7 {[%emt 0:0:17]} 8. Re1 {[%emt 0:2:5]} Bg4 {[%emt 0:2:8]} 9. c4 {[%emt 0:2:39]} Nf6 {[%emt 0:0:58]} 10. Nc3 {[%emt 0:3:50]} Bxf3 {[%emt 0:3:43]} 11. Qxf3 {[%emt 0:1:1]} Nxd4 {[%emt 0:0:28]} 12. Qh3 {[%emt 0:4:53] C42: Petroff Defence: 3 Nxe5 and unusual White 3rd moves.} dxc4 {[%emt 0:3:4]} 13. Bxc4 {[%emt 0:1:54]} Nc2 $1 {[%emt 0:5:50][%csl Ya1,Ye1]} 14. Rd1 {[%emt 0:7:20]} Qc8 {[%emt 0:0:58] [#] And now ...Qxh3 would win.} 15. Qxc8+ $146 {[%emt 0:15:0]} (15. Qg3 {is interesting.} O-O 16. Rb1 Bd6 17. Qh4 )({Predecessor:} 15. Qg3 O-O 16. Rb1 Bd6 17. Qh4 Qg4 18. Qxg4 Nxg4 19. h3 Nf6 20. Bg5 Be5 21. Nd5 c6 22. Bxf6 {½-½ Caruana,F (2670)-Gelfand,B (2755) Biel GM 42nd 2009 (6)} )Rxc8 {[%emt 0:0:38]} 16. Rb1 {[%emt 0:0:5]} O-O {[%emt 0:5:5]} 17. Bb3 {[%emt 0:1:27] A strong pair of Bishops.} Nb4 {[%emt 0:1:3]} 18. Be3 {[%emt 0:0:49]} a5 {[%emt 0:15:17]} 19. a3 {[%emt 0:1:22]} Na6 {[%emt 0:0:49]} 20. Nd5 {[%emt 0:2:10]} Nxd5 {[%emt 0:1:11]} 21. Rxd5 {[%emt 0:1:29]} b6 $1 {[%emt 0:1:1]} 22. Bc4 {[%emt 0:6:17]} Nc5 {[%emt 0:5:29]} 23. g3 {[%emt 0:11:26]} g6 {[%emt 0:17:15]} 24. b4 {[%emt 0:1:36]} axb4 {[%emt 0:3:32]} 25. axb4 {[%emt 0:0:5]} Ne4 {[%emt 0:3:11] ...Nc3 would be deadly.} 26. Re5 {[%emt 0:8:24]} Nd6 {[%emt 0:2:54]} 27. Rxe7 {[%emt 0:0:44]} Nxc4 {[%emt 0:0:8]} 28. Bf4 $1 {[%emt 0:0:31]} f6 {[%emt 0:4:26]} 29. Rc1 {[%emt 0:13:58]} b5 {[%emt 0:0:27]} 30. Rxc7 {[%emt 0:0:43]} g5 {[%emt 0:3:20]} 31. Rxc8 {[%emt 0:0:58]} Rxc8 $11 {[%emt 0:0:12][%mdl 4096] Endgame KRB-KRN} 32. Be3 {[%emt 0:0:5]} Kf7 {[%emt 0:0:14]} 33. Bc5 {[%emt 0:1:8]} Nb2 $1 {[%emt 0:1:23]} 34. Ra1 {[%emt 0:16:10]} Nd3 {[%emt 0:6:35]} 35. Be3 {[%emt 0:5:3]} Rc4 {[%emt 0:1:17]} 36. Rd1 {[%emt 0:0:5]} Rc3 {[%emt 0:1:33]} 37. Kf1 {[%emt 0:0:57]} Rb3 {[%emt 0:6:52]} 38. h4 {[%emt 0:0:15]} gxh4 {[%emt 0:2:50]} 39. gxh4 {[%emt 0:0:3]} h5 {[%emt 0:0:7]} 40. Ke2 {[%emt 0:1:0]} Ne5 {[%emt 0:8:59]} 41. Bc5 $1 {[%emt 0:3:50] The position is equal.} Rb2+ {[%emt 0:31:27]} 42. Ke3 {[%emt 0:0:53]} Ke6 {[%emt 0:0:7]} 43. Ke4 {[%emt 0:2:29] Threatens to win with Rd6+.} Re2+ {[%emt 0:0:19]} 44. Kf4 {[%emt 0:1:25]} Ng6+ {[%emt 0:0:32]} 45. Kf3 {[%emt 0:3:52]} Rb2 {[%emt 0:3:10]} 46. Rd6+ {[%emt 0:0:49]} Kf5 {[%emt 0:1:0]} 47. Rb6 {[%emt 0:4:52]} Rb3+ {[%emt 0:3:58]} 48. Ke2 {[%emt 0:0:6]} Nxh4 {[%emt 0:0:19]} 49. Be7 {[%emt 0:1:24]} Nf3 {[%emt 0:5:59]} 50. Rxf6+ {[%emt 0:0:38]} Ke4 {[%emt 0:1:1]} 51. Re6+ {[%emt 0:0:8]} Kd5 {[%emt 0:0:29]} 52. Rd6+ {[%emt 0:0:40]} Ke4 {[%emt 0:0:8] aiming for ...Nd4+.} 53. Re6+ {[%emt 0:0:6]} Kd5 {[%emt 0:0:1]} 54. Rd6+ {[%emt 0:0:7]} Ke5 {[%emt 0:1:51] [#] White must now prevent ...Nd4+.} 55. Rh6 $1 {[%emt 0:1:3] Weighted Error Value: White=0.04 (flawless) /Black=0.04 (flawless)} 1/2-1/2